[Event "1000GM Schev-G2 April 2024"]
[Site "Santa Clara"]
[Date "2024.04.22"]
[Round "5.3"]
[White "Dominguez Aguilar, Guillermo"]
[Black "Yan, Nathan"]
[Result "1/2-1/2"]
[ECO "E08"]
[WhiteElo "2285"]
[BlackElo "2181"]
[Annotator "TA"]
[PlyCount "54"]
[EventDate "2024.03.06"]
[EventType "schev"]
[EventCountry "USA"]
[SourceTitle "playchess.com"]
[Source "ChessBase"]
[SourceQuality "1"]
[TimeControl "5400+30"]

{[%evp 21,54,20,16,12,0,0,0,0,0,0,4,0,0,0,24,16,27,21,17,3,6,0,6,4,15,0,0,0,0,-406,-413,-404,-84,-3938,-686]} 1. c4 {[%emt 0:07:27]} e6 {[%emt 0:00:19]} 2. Nf3 {[%emt 0:00:55]} d5 {[%emt 0:00:13]} 3. d4 {[%emt 0:00:58]} Nf6 {[%emt 0:00:18]} 4. g3 {[%emt 0:00:09]} Bb4+ {[%emt 0:00:29]} 5. Bd2 {[%emt 0:00:40]} Be7 {[%emt 0:00:07]} 6. Bg2 {[%emt 0:00:26]} O-O {[%emt 0:01:10]} 7. Qc2 {[%emt 0:00:20]} c6 {[%emt 0:00:09]} 8. O-O {[%emt 0:01:29]} b6 {[%emt 0:00:54]} 9. Bf4 {[%emt 0:02:51]} Bb7 {[%emt 0:00:24]} 10. Rd1 {[%emt 0:11:56]} Nbd7 {[%emt 0:01:07]} 11. Nc3 {[%emt 0:01:27]} dxc4 {[%emt 0:00:58]} 12. Nd2 {[%emt 0:00:47]} Nd5 {[%emt 0:00:40]} 13. Nxc4 {[%emt 0:00:26]} Nxf4 {[%emt 0:00:32]} 14. gxf4 {[%emt 0:00:02] The position is equal.} Qc7 {[%emt 0:01:00]} 15. e3 {[%emt 0:00:59]} Rfd8 {[%emt 0:03:12]} 16. Rac1 {[%emt 0:01:21]} Rac8 {[%emt 0:05:29]} 17. Qb1 {[%emt 0:22:00]} Qb8 {[%emt 0:01:03]} 18. b4 {[%emt 0:01:06]} Nf6 {[%emt 0:02:07]} 19. Ne5 {[%emt 0:00:25]} Nd5 {[%emt 0:03:58]} 20. Be4 {[%emt 0:07:45]} g6 {[%emt 0:04:01]} 21. a3 {[%emt 0:06:59]} Kg7 {[%emt 0:04:07]} 22. Bg2 {[%emt 0:05:14]} Qa8 {[%emt 0:18:48]} 23. Qb2 {[%emt 0:26:18]} a5 {[%emt 0:50:55][%cal Ba7a5,Ba5b4][%mdl 32]} 24. Nc4 {[%emt 0:00:30] Excellent horsemanship.} axb4 {[%emt 0:00:30]} 25. Nxd5 {[%emt 0:00:30][%mdl 8192] [#]} (25. axb4 $11 {and White is okay.} Qb8 26. Bxd5 exd5 27. Nxb6) 25... cxd5 $19 (25... exd5 26. Nxb6 bxa3 27. Qb3 $11) 26. Nxb6 Rxc1 $2 ({Worse is} 26... Qxa3 27. Qxa3 bxa3 28. Nxc8 Bxc8 (28... Rxc8 29. Rxc8 Bxc8 30. Rc1 $16) 29. Bf1 $16) (26... bxa3 $19 27. Rxc8 axb2 28. Rxa8 Bxa8) 27. Nc4 {[%emt 0:01:00][%mdl 8192]} (27. Qxc1 $17 Qa5 (27... Qxa3 28. Qc7 $15) 28. Qc7) 27... Rc2 {[%emt 0:00:00][%mdl 32768] Weighted Error Value: White=0.64/Black=0.23 (precise) .  Loses game:     	White=2     	---        Missed win:     	---       	Black=1      Inaccurate:     	---       	Black=1      OK:         	White=6     	Black=8      Best:        	White=1     	---       . An unexpected result.} 1/2-1/2

[Event "1000GM Schev-G2 April 2024"]
[Site "Santa Clara"]
[Date "2024.04.22"]
[Round "5.4"]
[White "Iinuma, Paul Y"]
[Black "Kokoszczynski, Jan"]
[Result "0-1"]
[ECO "D31"]
[WhiteElo "2165"]
[BlackElo "2287"]
[Annotator "TA"]
[PlyCount "70"]
[EventDate "2024.03.06"]
[EventType "schev"]
[EventCountry "USA"]
[SourceTitle "playchess.com"]
[Source "ChessBase"]
[SourceQuality "1"]
[TimeControl "5400+30"]

{[%evp 9,70,0,4,-77,-78,-60,-72,-82,-81,-90,-33,-42,-41,-97,-75,-98,-54,-52,-44,-26,-51,-41,-44,-75,-57,-94,-90,-120,-94,-136,-100,-123,-145,-145,-156,-163,0,-160,-100,-152,-119,-124,-122,-130,-103,-352,-199,-216,-210,-725,-712,-727,-719,-748,-740,-733,-728,-1781,-829,-12774,-12774,-2190,-2190]} 1. d4 {[%emt 0:01:48]} d5 {[%emt 0:00:28]} 2. c4 {[%emt 0:00:05]} e6 {[%emt 0:00:14]} 3. Nc3 {[%emt 0:00:09]} h6 {[%emt 0:00:06]} 4. e4 {[%emt 0:00:54]} dxe4 {[%emt 0:00:54]} 5. Nxe4 {[%emt 0:00:01]} Bb4+ {[%emt 0:00:41]} 6. Bd2 {[%emt 0:00:01]} (6. Nc3 $1 $11) 6... Qxd4 $17 {[%emt 0:07:47]} 7. Bxb4 {[%emt 0:00:02]} Qxe4+ {[%emt 0:00:13]} 8. Be2 {[%emt 0:00:47] Black is better.} Nc6 {[%emt 0:13:37]} 9. Bc3 {[%emt 0:00:17][%cal Og1f3]} e5 {[%emt 0:01:09]} (9... Nf6 $17 10. Nf3 O-O 11. Bxf6 gxf6) 10. Nf3 $15 {[%emt 0:01:29]} Be6 {[%emt 0:02:58]} 11. Nd2 {[%emt 0:01:50]} (11. O-O $15 Rd8 12. Nd2) 11... Qg6 {[%emt 0:14:01][%cal Og8f6] Black is more active.} 12. O-O {[%emt 0:00:04]} Nge7 {[%emt 0:10:18]} 13. f4 {[%emt 0:06:11]} exf4 $40 {[%emt 0:05:43][%mdl 128] Black attacks.} 14. Rxf4 {[%emt 0:00:16]} O-O-O {[%emt 0:03:34]} 15. Qf1 {[%emt 0:01:54]} Rhe8 {[%emt 0:13:09]} 16. Qf2 {[%emt 0:01:10]} f6 {[%emt 0:02:22]} 17. Rc1 {[%emt 0:00:58]} Kb8 {[%emt 0:02:10]} 18. Ne4 {[%emt 0:04:35]} Bc8 {[%emt 0:02:36]} 19. h4 {[%emt 0:08:09]} Ne5 {[%emt 0:03:41]} 20. h5 {[%emt 0:00:11]} Qh7 {[%emt 0:00:06]} 21. Qf1 {[%emt 0:04:10]} N7c6 {[%emt 0:03:00]} 22. Nf2 {[%emt 0:01:06]} Ne7 $2 {[%emt 0:01:21] [#] Excellent horsemanship.} ({Black should play} 22... g5 $19 23. hxg6 (23. Rxf6 $2 Nd4 $19) 23... Qxg6) 23. Bd1 $2 {[%emt 0:02:53]} (23. Ne4 $1 $11) 23... Bf5 {[%emt 0:02:11]} ({Black should try} 23... Qg8 {aiming for ...Nf5.} 24. Bc2 Be6) 24. Be2 {[%emt 0:01:30]} (24. Ba4 $142 Bd7 25. Bc2) 24... N7c6 {[%emt 0:00:55]} 25. Rd1 {[%emt 0:00:59]} Rxd1 {[%emt 0:01:20]} 26. Qxd1 {[%emt 0:00:01]} Rd8 {[%emt 0:00:59]} 27. Qa4 {[%emt 0:00:01] [#] Now White is beyond hope.} (27. Qc1 $17) 27... Bd7 {[%emt 0:00:45]} (27... g5 $142 28. hxg6 Qxg6) 28. b4 {[%emt 0:00:27]} Qb1+ {[%emt 0:01:32]} 29. Kh2 $2 {[%emt 0:00:19]} (29. Qd1 Qxa2 30. Qe1) 29... Qc1 $19 {[%emt 0:01:15][%csl LRc3,LRf4] Black is clearly winning.} 30. Bxe5 {[%emt 0:00:08]} Nxe5 {[%emt 0:00:28]} 31. Rd4 {[%emt 0:00:04]} Qe3 {[%emt 0:02:16]} (31... Bxa4 32. Rxd8#) 32. Qd1 {[%emt 0:00:40]} Qxf2 {[%emt 0:00:24]} 33. Bg4 {[%emt 0:00:11]} Nxg4+ {[%emt 0:02:15]} 34. Qxg4 {[%emt 0:00:03]} Bxg4 {[%emt 0:00:10]} ({Stronger than} 34... Qxa2 35. Rxd7 Rxd7 36. Qxd7 $11) 35. Rxd8+ {[%emt 0:00:13]} Bc8 {[%emt 0:00:06] Weighted Error Value: White=0.91/Black=0.50.  Loses game:     	White=1     	---        Missed win:     	---       	Black=1      Mistake:       	White=4     	Black=3      Inaccurate:     	White=4     	Black=1      OK:         	White=5     	Black=9      Best:        	White=2     	Black=1} 0-1

[Event "1000GM Schev-G2 April 2024"]
[Site "Santa Clara"]
[Date "2024.04.22"]
[Round "5.5"]
[White "Tang, Dylan"]
[Black "Fiedorek, Michal"]
[Result "1/2-1/2"]
[ECO "B56"]
[WhiteElo "2217"]
[BlackElo "2310"]
[Annotator "TA"]
[PlyCount "73"]
[EventDate "2024.03.06"]
[EventType "schev"]
[EventCountry "USA"]
[SourceTitle "playchess.com"]
[Source "ChessBase"]
[SourceQuality "1"]
[TimeControl "5400+30"]

{[%evp 20,73,32,30,25,42,42,32,31,24,37,27,30,24,24,31,30,29,42,6,9,0,0,0,0,0,0,0,0,0,0,0,0,0,0,0,0,0,0,0,0,0,2,7,1,0,0,0,0,0,0,0,0,0,0,0]} 1. e4 {[%emt 0:02:35]} c5 {[%emt 0:03:24]} 2. Nf3 {[%emt 0:00:38]} Nc6 {[%emt 0:00:05]} 3. d4 {[%emt 0:00:05]} cxd4 {[%emt 0:00:04]} 4. Nxd4 {[%emt 0:00:06]} Nf6 {[%emt 0:00:04]} 5. Nc3 {[%emt 0:00:08]} d6 {[%emt 0:00:04]} 6. f3 {[%emt 0:00:17]} e5 {[%emt 0:00:11]} 7. Nb3 {[%emt 0:00:04]} Be7 {[%emt 0:00:04]} 8. Be3 {[%emt 0:00:22]} O-O {[%emt 0:00:10]} 9. Qd2 {[%emt 0:00:06]} a5 {[%emt 0:00:07]} 10. Bb5 {[%emt 0:00:18]} Be6 {[%emt 0:00:22]} 11. O-O-O {[%emt 0:02:23]} Nb4 {[%emt 0:00:45]} 12. Kb1 {[%emt 0:02:37]} d5 {[%emt 0:00:30]} 13. exd5 {[%emt 0:00:51]} Nbxd5 {[%emt 0:00:51] White is slightly better.} (13... Nfxd5 14. a3 Nxc3+ (14... Nxe3 $2 15. Qxe3 Nxc2 16. Kxc2 $18) 15. Qxc3 $16) 14. Nxd5 {[%emt 0:00:13]} Nxd5 {[%emt 0:00:03]} 15. Bc4 $1 {[%emt 0:00:19]} Nxe3 {[%emt 0:00:06]} 16. Qxe3 {[%emt 0:00:07]} Qc8 {[%emt 0:00:14]} 17. Bxe6 {[%emt 0:00:09]} Qxe6 {[%emt 0:00:04]} 18. Rhe1 {[%emt 0:04:48]} Rfd8 {[%emt 0:00:09]} 19. Rxd8+ {[%emt 0:06:35]} (19. Qxe5 $2 Rxd1+ 20. Rxd1 Qxe5 $19) 19... Rxd8 {[%emt 0:00:09] The position is equal.} 20. Nc5 {[%emt 0:00:52]} (20. Qxe5 $2 {is the wrong capture.} Rd1+ 21. Rxd1 Qxe5 $19) (20. Nxa5 Bb4 (20... b6 21. Nb3 $16) 21. Nxb7 Ra8 $19) 20... Bxc5 {[%emt 0:07:26]} (20... Qb6 $5 21. Nd3 $8 Qxe3 22. Rxe3 f6 $16) 21. Qxc5 $11 {[%emt 0:00:03][%mdl 4096] Endgame. KQR-KQR} b6 {[%emt 0:00:14]} 22. Qc7 {[%emt 0:05:40]} (22. Qxe5 $2 {perishes.} Qxe5 23. Rc1 Qxh2 $19) 22... Qd6 {[%emt 0:01:05]} 23. Qxd6 {[%emt 0:01:54]} Rxd6 {[%emt 0:00:06] KR-KR} 24. Kc1 {[%emt 0:07:30] Prevents Rd2} f6 {[%emt 0:17:07]} 25. c4 {[%emt 0:04:36]} Kf7 {[%emt 0:02:32]} 26. Kc2 {[%emt 0:00:29]} h5 {[%emt 0:00:37]} 27. a3 {[%emt 0:02:25]} Ke6 {[%emt 0:00:30]} 28. Kc3 {[%emt 0:01:02]} Kd7 {[%emt 0:04:42]} 29. b4 {[%emt 0:01:10]} axb4+ {[%emt 0:00:16]} 30. axb4 {[%emt 0:00:10]} Kc6 {[%emt 0:00:27]} 31. Ra1 {[%emt 0:02:49]} Kb7 $1 {[%emt 0:03:08] Against Ra7+} 32. Ra2 {[%emt 0:00:48]} Rd1 {[%emt 0:00:43]} 33. Rd2 {[%emt 0:00:28]} Rc1+ {[%emt 0:00:15]} 34. Rc2 {[%emt 0:00:52]} Rd1 {[%emt 0:00:45]} 35. Rd2 {[%emt 0:00:06]} Rc1+ {[%emt 0:00:04]} 36. Rc2 {[%emt 0:00:08]} Rd1 {[%emt 0:00:54]} 37. Rd2 {[%emt 0:00:05] Weighted Error Value: White=0.02 (flawless) /Black=0.01 (flawless) .  Inaccurate:     	White=1     	---        OK:         	White=10    	Black=10     Strong:       	White=1     	Black=1} 1/2-1/2